bitfinex/quotes_SOLUSD_20251009
["timestamp","ask_amount","ask_price","bid_price","bid_amount"]
[1760017121938,3.29267898,224.59,224.56,44.19647521]
[1760017121939,3.29267898,224.58,224.56,44.19647521]
[1760017122144,3.29267898,224.57,224.56,44.19647521]
[1760017122334,4.45216152,224.61,224.56,44.19647521]
[1760017122335,15.58256533,224.61,224.56,44.19647521]
[1760017122651,4.45216152,224.61,224.56,44.19647521]
[1760017122952,21.5,224.67,224.56,44.90647521]
[1760017123155,5.15115163,224.67,224.58,10.87647521]
[1760017123363,3.29267898,224.62,224.58,10.87647521]
[1760017123658,3.29267898,224.62,224.58,0.71]
[1760017124032,3.29267898,224.61,224.56,33.32]
[1760017124251,5.18456591,224.6,224.57,10.87647521]
[1760017124566,5.15156695,224.64,224.57,10.87647521]
[1760017124763,5.18456591,224.58,224.54,10.87647521]
[1760017124960,5.18456591,224.57,224.54,10.87647521]
[1760017125269,16.28048432,224.64,224.56,10.87647521]
[1760017125442,5.18456591,224.6,224.57,0.72]
[1760017125643,5.18456591,224.59,224.54,10.87647521]
[1760017125847,5.18456591,224.6,224.56,10.87647521]
[1760017126046,5.18456591,224.6,224.57,0.72]
[1760017126763,5.18456591,224.59,224.56,44.17647521]
[1760017127135,5.18456591,224.58,224.56,44.17647521]
[1760017127754,5.18456591,224.59,224.56,44.17647521]
[1760017127941,4.45159876,224.64,224.56,44.17647521]
[1760017128253,5.18456591,224.59,224.56,44.17647521]
[1760017128857,5.18456591,224.61,224.57,0.72]
[1760017129067,5.18456591,224.58,224.56,44.17647521]
[1760017129261,5.18456591,224.57,224.56,44.17647521]
[1760017129873,20.8,224.64,224.56,44.17647521]
[1760017129874,5.18456591,224.58,224.56,44.17647521]
[1760017130048,5.18456591,224.58,224.53,5.17367581]
[1760017130049,9.63752044,224.57,224.51,10.87647521]
[1760017130376,5.18456591,224.52,224.5,0.1]
[1760017130563,5.18456591,224.51,224.5,0.1]
[1760017130951,5.86456591,224.51,224.5,0.1]
[1760017131170,20.8,224.54,224.5,0.1]
[1760017131471,5.86456591,224.51,224.5,0.1]
[1760017131673,0.68,224.53,224.5,0.1]
[1760017131844,4.92297384,224.63,224.5,0.1]
[1760017131845,0.68,224.61,224.51,0.72]
[1760017132187,0.68,224.61,224.52,10.87647521]
[1760017132475,0.68,224.65,224.54,10.87647521]
[1760017132641,0.68,224.65,224.55,0.72]
[1760017132846,5.18456591,224.6,224.55,0.72]
[1760017133045,5.18456591,224.6,224.54,10.87647521]
[1760017133245,5.18456591,224.6,224.54,11.59647521]
[1760017134347,5.18456591,224.58,224.54,0.72]
[1760017134675,20.8,224.64,224.53,38.49370767]
[1760017134676,5.18456591,224.6,224.53,38.49370767]
[1760017134853,5.18456591,224.6,224.54,0.72]
[1760017135053,20.8,224.64,224.54,0.72]
[1760017135054,5.18456591,224.59,224.54,0.72]
[1760017135264,5.18456591,224.59,224.55,0.72]
[1760017135764,5.18456591,224.59,224.53,37.77370767]
[1760017135765,5.18456591,224.62,224.56,0.72]
[1760017135971,0.68,224.68,224.57,10.87647521]
[1760017136182,5.18456591,224.62,224.58,33.26]
[1760017136394,5.18456591,224.63,224.59,0.72]
[1760017136591,5.18456591,224.64,224.59,0.72]
[1760017136885,5.18456591,224.63,224.59,0.72]
[1760017137563,5.18456591,224.63,224.58,33.26]
[1760017137761,5.18456591,224.63,224.59,0.72]
[1760017137964,5.18456591,224.62,224.58,33.26]
[1760017138468,20.8,224.67,224.59,0.72]
[1760017138675,0.68,224.68,224.59,0.72]
[1760017138676,5.18456591,224.66,224.59,0.72]
[1760017139374,4.4493882,224.75,224.6,10.87647521]
[1760017139581,2.9529446,224.76,224.62,10.87647521]
[1760017139780,5.18456591,224.7,224.64,10.87647521]
[1760017139997,5.18456591,224.7,224.65,0.72]
[1760017140196,5.18456591,224.71,224.66,0.72]
[1760017140770,0.68,224.74,224.64,10.87647521]
[1760017140771,0.68,224.74,224.64,15.32803]
[1760017141090,5.18456591,224.75,224.66,10.87647521]
[1760017141282,5.12839857,224.8,224.65,10.87647521]
[1760017141283,5.18456591,224.7,224.65,10.87647521]
[1760017141485,5.18456591,224.7,224.66,33.92]
[1760017141673,5.18456591,224.7,224.67,0.72]
[1760017141990,5.18456591,224.71,224.67,0.72]
[1760017142777,5.18456591,224.71,224.66,37.65116659]
[1760017142998,5.18456591,224.72,224.67,0.72]
[1760017143299,5.18456591,224.72,224.66,37.65116659]
[1760017143300,5.18456591,224.77,224.68,11.59647521]
[1760017143482,5.18456591,224.75,224.67,10.87647521]
[1760017143793,23.75648321,224.8,224.69,10.87647521]
[1760017143966,4.4482007,224.81,224.7,0.72]
[1760017144167,5.18456591,224.73,224.65,0.72]
[1760017144384,4.4499822,224.72,224.66,20.29647521]
[1760017144586,9.63454811,224.72,224.66,20.29647521]
[1760017144790,5.18456591,224.73,224.66,24.74754052]
[1760017144986,5.18456591,224.73,224.68,10.87647521]
[1760017145184,9.63415798,224.74,224.69,0.72]
[1760017145394,9.63415798,224.74,224.68,10.87647521]
[1760017145395,9.63415798,224.74,224.68,79.5]
[1760017145579,5.18456591,224.71,224.68,79.5]
[1760017145780,5.18456591,224.72,224.68,80.22]
[1760017146000,5.18456591,224.76,224.69,0.72]
[1760017146187,5.12800284,224.82,224.7,10.87647521]
[1760017146383,5.18456591,224.76,224.7,11.59647521]
[1760017146586,5.18456591,224.75,224.7,11.59647521]
[1760017146785,5.18456591,224.75,224.71,0.72]
[1760017146984,5.18456591,224.73,224.66,0.72]
[1760017147175,5.18456591,224.68,224.65,10.87647521]
[1760017147377,5.18456591,224.68,224.64,53.96]
[1760017147696,5.18456591,224.65,224.56,4.45303967]
[1760017147998,5.18456591,224.62,224.57,33.18]
[1760017148195,5.18456591,224.61,224.57,33.9]
[1760017148402,9.63693626,224.6,224.57,33.18]
[1760017148580,5.18456591,224.59,224.57,33.18]
[1760017148781,5.18456591,224.58,224.57,33.18]
[1760017149095,5.18456591,224.6,224.57,33.18]
[1760017149296,5.18456591,224.59,224.57,33.18]
[1760017149682,5.18456591,224.59,224.55,33.16]
[1760017149900,5.18456591,224.65,224.58,0.72]
[1760017150300,5.18456591,224.66,224.59,15.3290332]
[1760017150597,5.18456591,224.66,224.61,10.87647521]
[1760017151298,5.18456591,224.63,224.6,33.18]
[1760017151603,5.18456591,224.63,224.6,33.9]
[1760017151789,5.18456591,224.64,224.6,33.9]
[1760017152187,5.18456591,224.61,224.6,33.18]
[1760017152389,4.45235975,224.6,224.54,33.16]
[1760017152689,5.18456591,224.58,224.54,33.16]
[1760017153003,5.18456591,224.58,224.55,0.7]
[1760017153303,5.18456591,224.6,224.55,0.7]
[1760017153500,5.18456591,224.58,224.54,33.16]
[1760017153699,15.57979077,224.65,224.5,0.1]
[1760017153700,5.18456591,224.55,224.5,0.1]
[1760017154003,5.18456591,224.53,224.51,33.14]
[1760017154196,5.18456591,224.53,224.51,33.84]
[1760017154782,5.18456591,224.52,224.51,33.14]
[1760017154998,5.18456591,224.52,224.5,0.1]
[1760017155197,5.13364489,224.54,224.5,0.1]
[1760017155198,5.18456591,224.51,224.5,0.1]
[1760017155401,20.8,224.58,224.5,0.1]
[1760017155595,5.18456591,224.52,224.5,0.1]
[1760017155793,5.18456591,224.51,224.5,0.1]
[1760017159510,4.45311402,224.57,224.5,5.25418926]
[1760017159807,5.18456591,224.55,224.5,5.25418926]
[1760017160011,5.18456591,224.55,224.51,0.7]
[1760017160919,5.18456591,224.54,224.5,0.1]
[1760017161213,0.68,224.59,224.5,0.1]
[1760017161214,5.18456591,224.51,224.5,0.1]
[1760017161788,5.86456591,224.51,224.5,0.1]
[1760017162495,3.6776975,224.64,224.5,0.1]
[1760017162693,5.18456591,224.56,224.5,5.25433082]
[1760017162893,5.18456591,224.55,224.5,0.8]
[1760017163098,4.45235975,224.6,224.5,0.1]
[1760017163099,5.18456591,224.53,224.5,0.1]
[1760017163288,5.18456591,224.52,224.5,0.1]
[1760017163812,15.58325912,224.6,224.5,0.1]
[1760017163813,25.93235975,224.6,224.5,0.1]
[1760017163992,5.18456591,224.54,224.5,0.8]
[1760017164190,5.18456591,224.55,224.51,0.7]
[1760017164390,5.18456591,224.64,224.51,0.7]
[1760017164391,5.18456591,224.58,224.52,0.7]
[1760017164605,5.18456591,224.59,224.52,33.8]
[1760017164911,9.63716713,224.59,224.53,4.45374782]
[1760017165085,5.18456591,224.59,224.53,4.45374782]
[1760017165302,5.18456591,224.59,224.54,10.87647521]
[1760017165512,5.18456591,224.61,224.55,0.7]
[1760017165718,5.18456591,224.6,224.55,0.7]
[1760017165922,5.18456591,224.6,224.56,0.7]
[1760017166120,5.18456591,224.6,224.54,10.87647521]
[1760017166810,5.18456591,224.6,224.54,15.32993596]
[1760017167430,5.18456591,224.59,224.54,10.87647521]
[1760017167609,5.18456591,224.6,224.55,0.7]
[1760017167805,5.18456591,224.6,224.56,0.7]
[1760017168306,5.18456591,224.6,224.53,11.57647521]
[1760017168621,5.18456591,224.59,224.56,20.8]
[1760017168828,5.18456591,224.61,224.56,25.25299825]
[1760017169321,5.18456591,224.61,224.57,0.7]
[1760017169709,15.57909729,224.66,224.53,10.87647521]
[1760017169710,5.18456591,224.6,224.53,10.87647521]
[1760017169901,20.8,224.63,224.52,33.1]
[1760017170104,5.18456591,224.54,224.51,0.7]
[1760017170413,5.18456591,224.57,224.52,0.7]
[1760017170619,0.68,224.65,224.53,0.7]
[1760017170835,5.18456591,224.58,224.53,0.7]
[1760017171031,5.18456591,224.57,224.54,0.7]
[1760017171212,5.18456591,224.55,224.5,0.1]
[1760017171412,5.18456591,224.52,224.5,0.1]
[1760017171622,5.18456591,224.51,224.5,0.1]
[1760017172027,5.18456591,224.52,224.5,0.1]
[1760017172328,5.18456591,224.53,224.5,0.1]
[1760017172526,5.18456591,224.52,224.5,0.1]
[1760017172727,5.18456591,224.53,224.5,0.8]
[1760017174037,5.18456591,224.56,224.5,0.1]
[1760017174207,5.18456591,224.53,224.5,0.1]
[1760017175132,4.45135161,224.66,224.52,10.87647521]
[1760017175333,4.45135161,224.66,224.51,0.7]
[1760017175334,4.45079268,224.68,224.56,10.87647521]
[1760017175514,5.18456591,224.68,224.58,10.87647521]
[1760017175713,5.18456591,224.68,224.6,10.87647521]
[1760017176232,5.18456591,224.68,224.55,20.8]
[1760017176233,5.18456591,224.62,224.56,10.87647521]
[1760017176609,0.68,224.67,224.56,10.87647521]
[1760017176830,5.18456591,224.63,224.58,10.87647521]
[1760017177024,5.18456591,224.63,224.59,0.7]
[1760017177225,5.18456591,224.63,224.61,10.87647521]
[1760017177427,5.18456591,224.64,224.61,10.87647521]
[1760017178324,0.68,224.73,224.63,10.87647521]
[1760017178512,5.18456591,224.69,224.63,10.87647521]
[1760017178908,5.18456591,224.69,224.64,4.45156695]
[1760017179136,5.18456591,224.71,224.65,44.59647521]
[1760017179337,5.18456591,224.7,224.65,44.59647521]
[1760017179522,5.18456591,224.7,224.67,10.87647521]
[1760017180528,5.18456591,224.71,224.67,10.87647521]
[1760017180927,5.18456591,224.71,224.67,11.57647521]
[1760017181132,4.45003816,224.72,224.66,4.45111743]
[1760017181133,5.18456591,224.69,224.66,10.87647521]
[1760017181530,20.8,224.76,224.67,0.7]
[1760017181833,0.68,224.76,224.67,0.7]
[1760017182036,15.57078031,224.78,224.67,0.7]
[1760017182037,4.44879437,224.78,224.67,0.7]
[1760017182342,4.44879437,224.78,224.7,10.87647521]
[1760017182343,5.18456591,224.77,224.7,10.87647521]
[1760017182533,5.18456591,224.77,224.71,37.45018023]
[1760017182717,9.6335754,224.77,224.71,37.45018023]
[1760017183040,5.18456591,224.77,224.71,33.0]
[1760017183216,5.18456591,224.75,224.71,33.0]
[1760017183540,5.18456591,224.76,224.73,10.87647521]
[1760017183712,5.18456591,224.77,224.73,10.87647521]
[1760017183915,4.44837536,224.81,224.75,10.87647521]
[1760017184316,5.18456591,224.79,224.75,10.87647521]
[1760017184736,5.18456591,224.78,224.75,10.87647521]
[1760017185241,5.18456591,224.78,224.72,11.59647521]
[1760017186031,5.18456591,224.78,224.73,4.44978418]
[1760017186230,3.29380812,224.78,224.75,10.87647521]
[1760017186915,4.44829136,224.81,224.72,10.87647521]
[1760017187422,4.44829136,224.81,224.72,11.59647521]
[1760017187635,4.44783785,224.83,224.73,0.72]
[1760017188035,4.44783785,224.83,224.75,10.87647521]
[1760017188237,5.13727418,224.86,224.77,10.87647521]
[1760017188451,0.69,224.89,224.79,10.87647521]
[1760017188643,11.11578629,224.91,224.81,10.87647521]
[1760017188644,15.56178026,224.91,224.81,10.87647521]
[1760017188845,4.44622293,224.91,224.82,32.9]
[1760017189034,4.44622293,224.91,224.83,10.87647521]
[1760017189240,3.00982574,224.94,224.83,11.59647521]
[1760017189559,0.69,224.94,224.85,10.87647521]
[1760017189741,2.93757829,224.99,224.87,10.87647521]
[1760017189742,3.29380812,224.92,224.87,10.87647521]
[1760017190060,3.29380812,224.92,224.88,11.59647521]
[1760017190259,4.44604872,224.92,224.88,11.59647521]
[1760017190460,3.29380812,224.89,224.87,10.87647521]
[1760017190647,3.29380812,224.88,224.87,10.87647521]
[1760017190954,3.29380812,224.88,224.73,15.57424464]
[1760017191156,3.29380812,224.83,224.79,10.87647521]
[1760017191341,3.29380812,224.83,224.81,10.87647521]
[1760017191550,3.29380812,224.82,224.81,10.87647521]
[1760017191745,3.98380812,224.82,224.8,10.87647521]
[1760017191954,3.98380812,224.81,224.77,10.87647521]
[1760017192145,4.44879437,224.78,224.77,10.87647521]
[1760017192343,7.74260249,224.78,224.77,10.87647521]
[1760017192543,7.74260249,224.78,224.76,32.88]
[1760017192740,3.29380812,224.82,224.77,0.72]
[1760017192940,4.44721552,224.86,224.76,32.88]
[1760017192941,3.29380812,224.81,224.76,32.88]
[1760017193144,15.56524451,224.86,224.77,10.87647521]
[1760017193145,3.29380812,224.79,224.77,10.87647521]
[1760017193471,15.56524451,224.86,224.77,10.87647521]
[1760017193472,3.29380812,224.78,224.77,10.87647521]
[1760017194442,4.44867333,224.79,224.77,10.87647521]
[1760017194647,3.29380812,224.79,224.77,11.59647521]
[1760017194837,4.44681607,224.88,224.78,0.72]
[1760017195046,3.29380812,224.83,224.78,0.72]
[1760017195246,4.44681607,224.88,224.77,15.32544583]
[1760017195247,3.29380812,224.85,224.8,10.87647521]
[1760017195452,3.29380812,224.85,224.82,10.87647521]
[1760017195667,3.29380812,224.84,224.82,10.87647521]
[1760017195867,15.56385626,224.88,224.82,10.87647521]
[1760017196053,3.29380812,224.84,224.82,10.87647521]
[1760017196247,4.44681607,224.88,224.82,10.87647521]
[1760017196468,3.29380812,224.87,224.82,15.32447333]
[1760017196648,3.29380812,224.89,224.84,10.87647521]
[1760017196851,7.74040035,224.9,224.86,10.87647521]
[1760017197059,3.29380812,224.87,224.86,10.87647521]
[1760017198273,3.29380812,224.88,224.83,11.59647521]
[1760017198581,3.29380812,224.9,224.84,0.72]
[1760017198751,4.44602608,224.92,224.84,0.72]
[1760017198953,3.29380812,224.9,224.84,0.72]
[1760017199252,4.44602608,224.92,224.84,0.72]
[1760017199481,3.29380812,224.85,224.61,28.09529223]
[1760017199656,3.29380812,224.77,224.7,33.0]
[1760017199866,3.29380812,224.75,224.71,10.87647521]
[1760017200186,3.29380812,224.73,224.71,0.72]
[1760017200359,3.29380812,224.72,224.7,33.0]
[1760017200566,3.29380812,224.71,224.7,33.0]
[1760017200781,3.29380812,224.71,224.65,0.72]
[1760017200968,3.29380812,224.66,224.65,33.02]
[1760017201155,0.69,224.71,224.54,22.06438471]
[1760017201355,3.29380812,224.64,224.59,0.72]
[1760017201659,0.69,224.7,224.6,0.72]
[1760017201975,3.29380812,224.65,224.61,10.87647521]
[1760017202168,3.29380812,224.66,224.63,10.87647521]
[1760017202374,3.29380812,224.65,224.63,10.87647521]
[1760017202584,3.29380812,224.64,224.6,10.87647521]
[1760017203178,4.45130303,224.66,224.55,33.02]
[1760017203179,3.29380812,224.62,224.56,11.59647521]
[1760017203380,3.29380812,224.61,224.56,0.72]
[1760017203590,3.29380812,224.59,224.55,33.02]
[1760017203767,0.69,224.66,224.56,11.59647521]
[1760017203970,3.29380812,224.61,224.56,11.59647521]
[1760017204170,3.29380812,224.61,224.58,10.87647521]
[1760017204499,3.29380812,224.59,224.58,10.87647521]
[1760017204668,20.8,224.67,224.58,0.72]
[1760017204873,3.29380812,224.63,224.58,0.72]
[1760017205185,0.69,224.69,224.56,15.32960532]
[1760017205186,0.69,224.69,224.6,10.87647521]
[1760017205389,3.29380812,224.66,224.6,10.87647521]
[1760017205679,3.29380812,224.66,224.56,4.45313011]
[1760017205680,3.29380812,224.61,224.56,10.87647521]
[1760017205870,3.29380812,224.58,224.56,10.87647521]
[1760017206072,0.69,224.65,224.56,10.87647521]
[1760017206287,20.8,224.68,224.58,10.87647521]
[1760017206459,3.29380812,224.66,224.6,10.87647521]
[1760017206658,7.74498612,224.66,224.6,10.87647521]
[1760017206860,3.29380812,224.65,224.6,10.87647521]
[1760017207177,3.29380812,224.65,224.6,0.72]
[1760017207371,3.29380812,224.66,224.62,10.87647521]
[1760017207578,3.29380812,224.65,224.62,10.87647521]
[1760017207775,3.29380812,224.66,224.6,10.87647521]
[1760017208085,3.29380812,224.66,224.62,10.87647521]
[1760017208580,3.29380812,224.65,224.62,10.87647521]
[1760017208785,4.45114903,224.67,224.57,10.87647521]
[1760017208786,3.29380812,224.63,224.57,10.87647521]
[1760017209010,3.29380812,224.58,224.57,10.87647521]
[1760017209293,4.45114903,224.67,224.57,0.72]
[1760017209666,3.29380812,224.65,224.57,0.72]
[1760017210179,0.69,224.72,224.57,0.72]
[1760017210386,4.4499822,224.72,224.59,10.87647521]
[1760017210579,3.29380812,224.71,224.61,10.87647521]
[1760017210889,3.29380812,224.7,224.63,10.87647521]
[1760017211055,4.44958618,224.74,224.63,10.87647521]
[1760017211056,3.29380812,224.69,224.63,10.87647521]
[1760017211261,0.69,224.68,224.61,10.87647521]
[1760017211486,21.49,224.71,224.61,10.87647521]
[1760017211776,3.29380812,224.64,224.61,10.87647521]
[1760017211979,3.29380812,224.62,224.54,10.87647521]
[1760017212185,0.69,224.63,224.54,10.87647521]
[1760017212383,3.29380812,224.59,224.54,10.87647521]
[1760017212581,20.8,224.65,224.56,10.87647521]
[1760017212775,20.8,224.65,224.57,0.7]
[1760017212969,3.29380812,224.61,224.55,10.87647521]
[1760017213169,3.29380812,224.6,224.55,10.87647521]
[1760017213382,0.72,224.64,224.55,0.7]
[1760017213591,3.29380812,224.61,224.56,10.87647521]
[1760017213771,3.29380812,224.61,224.56,11.57647521]
[1760017213978,20.8,224.65,224.54,4.4534199]
[1760017213979,20.8,224.65,224.58,10.87647521]
[1760017214173,3.29380812,224.64,224.58,10.87647521]
[1760017214375,20.8,224.65,224.58,10.87647521]
[1760017214693,4.45176512,224.63,224.58,10.87647521]
[1760017214871,7.74539503,224.64,224.58,0.7]
[1760017215066,3.29380812,224.67,224.59,10.87647521]
[1760017215285,0.72,224.75,224.61,10.87647521]
[1760017215484,3.29380812,224.66,224.61,10.87647521]
[1760017215673,3.29380812,224.64,224.59,10.87647521]
[1760017215875,3.29380812,224.64,224.61,10.87647521]
[1760017216072,3.29380812,224.64,224.63,10.87647521]
[1760017216473,7.30761624,224.64,224.54,10.87647521]
[1760017216673,3.29380812,224.56,224.54,10.87647521]
[1760017216873,3.29380812,224.57,224.54,11.57647521]
[1760017217292,4.45250211,224.6,224.54,11.57647521]
[1760017217293,3.29380812,224.56,224.54,11.57647521]
[1760017217602,3.29380812,224.55,224.5,10.97647521]
[1760017217802,15.58340148,224.6,224.52,10.87647521]
[1760017217973,3.29380812,224.53,224.5,10.97647521]
[1760017218169,15.58340148,224.6,224.5,10.97647521]
[1760017218170,3.29380812,224.51,224.5,10.97647521]
[1760017218674,15.58340148,224.6,224.5,11.67647521]
[1760017218879,16.30340148,224.6,224.5,11.67647521]
[1760017219081,3.29380812,224.55,224.5,16.1306964]
[1760017219287,3.29380812,224.56,224.5,15.4306964]
[1760017219595,0.72,224.57,224.52,10.87647521]
[1760017219777,15.58340148,224.6,224.5,0.1]
[1760017219778,3.29380812,224.53,224.5,10.97647521]
[1760017219980,3.29380812,224.51,224.5,10.97647521]
[1760017220898,7.7479527,224.51,224.5,0.1]
[1760017221699,3.29380812,224.51,224.5,0.1]
[1760017223284,4.45371415,224.54,224.5,0.1]
[1760017223515,3.29380812,224.51,224.5,0.1]
[1760017225082,7.7479527,224.51,224.5,0.1]
[1760017226306,11.76176082,224.51,224.5,1e-08]
[1760017226505,22.89712227,224.51,224.48,0.1]
[1760017226711,24.09380812,224.49,224.48,0.1]
[1760017226900,24.09380812,224.48,224.47,0.1]
[1760017227087,29.26854796,224.48,224.47,1e-08]
[1760017227291,29.26854796,224.48,224.38,10.87647521]
[1760017227292,62.67909677,224.48,224.37,0.1]
[1760017227515,3.29380812,224.38,224.37,0.1]
[1760017228801,20.8,224.45,224.37,0.1]
[1760017228991,3.29380812,224.39,224.38,10.87647521]
[1760017229515,3.29380812,224.39,224.37,0.1]
[1760017229810,3.29380812,224.38,224.37,0.1]
[1760017230691,0.72,224.42,224.37,0.1]
[1760017231015,3.29380812,224.39,224.38,10.87647521]
[1760017231324,3.29380812,224.39,224.37,0.1]
[1760017231495,3.29380812,224.38,224.37,0.1]
[1760017232693,3.29380812,224.4,224.37,11.67647521]
[1760017232913,3.29380812,224.38,224.37,0.1]
[1760017233111,7.75053331,224.38,224.37,0.1]
[1760017233314,3.29380812,224.38,224.37,0.1]
[1760017233609,7.75053331,224.38,224.37,0.1]
[1760017233796,20.8,224.41,224.38,10.87647521]
[1760017233797,3.29380812,224.41,224.38,10.87647521]
[1760017233998,3.29380812,224.42,224.4,10.87647521]
[1760017234197,20.8,224.43,224.4,10.87647521]
[1760017234198,3.29380812,224.41,224.4,10.87647521]
[1760017234711,3.29380812,224.41,224.37,0.1]
[1760017234921,3.29380812,224.42,224.39,10.87647521]
[1760017235117,7.74992341,224.42,224.39,10.87647521]
[1760017235422,7.74992341,224.42,224.37,0.8]
[1760017235626,3.29380812,224.41,224.37,0.8]
[1760017235922,3.29380812,224.4,224.38,10.87647521]
[1760017236101,3.29380812,224.39,224.38,10.87647521]
[1760017237125,3.29380812,224.39,224.37,0.1]
[1760017237329,7.7504314,224.39,224.37,0.1]
[1760017237629,3.29380812,224.38,224.37,0.1]
[1760017237917,3.29380812,224.38,224.37,11.67647521]
[1760017238099,3.29380812,224.38,224.37,10.97647521]
[1760017238414,24.81380812,224.38,224.37,10.97647521]
[1760017238606,24.09380812,224.38,224.37,10.97647521]
[1760017239321,3.29380812,224.39,224.38,10.87647521]
[1760017239616,10.97647521,224.48,224.38,10.87647521]
[1760017239617,3.29380812,224.51,224.38,11.57647521]
[1760017239820,3.29380812,224.43,224.37,10.97647521]
[1760017240021,3.29380812,224.45,224.4,10.87647521]
[1760017240223,3.29380812,224.46,224.42,10.87647521]
[1760017240404,3.29380812,224.46,224.44,10.87647521]
[1760017240905,20.8,224.48,224.44,10.87647521]
[1760017240906,3.29380812,224.45,224.44,10.87647521]
[1760017241616,3.29380812,224.45,224.44,0.7]
[1760017241795,3.29380812,224.45,224.41,10.87647521]
[1760017241994,3.29380812,224.45,224.43,10.87647521]
[1760017242203,3.29380812,224.45,224.43,11.57647521]
[1760017242406,3.29380812,224.45,224.43,0.71]
[1760017242623,3.29380812,224.45,224.41,10.87647521]
[1760017242794,3.29380812,224.42,224.41,10.87647521]
[1760017243000,3.29380812,224.42,224.37,0.1]
[1760017243211,3.29380812,224.38,224.37,0.1]
[1760017243395,7.75053331,224.38,224.37,0.1]
[1760017244419,8.42053331,224.38,224.37,0.1]
[1760017244731,4.45672519,224.38,224.37,0.1]
[1760017244932,7.75053331,224.38,224.37,0.1]
[1760017245229,3.29380812,224.38,224.37,0.1]
[1760017245401,7.75053331,224.38,224.37,0.1]
[1760017246206,8.42053331,224.38,224.37,0.1]
[1760017246603,7.75053331,224.38,224.37,0.1]
[1760017246801,8.42053331,224.38,224.37,0.1]
[1760017247200,7.75053331,224.38,224.37,0.1]
[1760017248142,9.65354094,224.38,224.37,0.1]
[1760017248308,13.24908267,224.38,224.37,0.1]
[1760017248924,7.38226692,224.38,224.37,0.1]
[1760017249331,7.38226692,224.38,224.33,0.1]
[1760017249332,20.8,224.35,224.33,0.1]
[1760017249542,20.8,224.31,224.27,0.1]
[1760017249708,5.19681575,224.28,224.27,0.1]
[1760017251621,9.65552807,224.28,224.27,0.1]
[1760017251935,32.88,224.29,224.27,0.1]
[1760017251936,5.19681575,224.29,224.27,0.76]
[1760017252232,5.19681575,224.28,224.27,0.76]
[1760017252532,4.45672519,224.38,224.28,10.87647521]
[1760017252734,4.4561294,224.41,224.3,10.87647521]
[1760017253028,5.19681575,224.36,224.32,10.87647521]
[1760017253209,5.19681575,224.36,224.33,0.66]
[1760017253404,5.19681575,224.36,224.34,0.66]
[1760017253638,2.92057552,224.39,224.34,0.66]
[1760017253853,2.92057552,224.4,224.36,10.87647521]
[1760017254010,5.19681575,224.44,224.37,0.66]
[1760017254210,5.19681575,224.44,224.38,10.87647521]
[1760017254431,5.19681575,224.45,224.4,10.87647521]
[1760017254739,5.19681575,224.45,224.42,10.87647521]
[1760017254916,5.19681575,224.43,224.38,10.87647521]
[1760017255110,5.19681575,224.44,224.38,10.87647521]
[1760017255306,5.19681575,224.45,224.38,10.87647521]
[1760017255516,5.19681575,224.45,224.4,15.33272171]
[1760017255834,5.19681575,224.46,224.42,10.87647521]
[1760017256036,5.19681575,224.46,224.43,0.66]
[1760017256219,5.19681575,224.46,224.37,20.8]
[1760017256220,5.19681575,224.46,224.38,15.3332004]
[1760017256422,5.19681575,224.46,224.4,10.87647521]
[1760017256633,5.19681575,224.45,224.4,10.87647521]
[1760017256827,7.37565278,224.49,224.42,10.87647521]
[1760017256828,5.19681575,224.43,224.42,10.87647521]
[1760017257136,5.19681575,224.44,224.42,11.53647521]
[1760017257332,5.19681575,224.45,224.43,0.66]
[1760017257632,5.19681575,224.46,224.44,0.66]
[1760017258431,5.19681575,224.46,224.45,10.87647521]
[1760017259742,5.19681575,224.46,224.4,10.87647521]
[1760017260035,5.19681575,224.46,224.37,20.8]
[1760017260036,5.19681575,224.44,224.41,10.87647521]
[1760017260207,5.19681575,224.42,224.38,20.8]
[1760017260412,5.19681575,224.4,224.39,10.87647521]
[1760017260607,5.19681575,224.4,224.36,10.87647521]
[1760017260831,5.19681575,224.38,224.36,11.53647521]
[1760017261132,21.47,224.45,224.33,32.88]
[1760017261133,5.19681575,224.4,224.37,11.53647521]
[1760017261437,20.8,224.47,224.38,11.53647521]
[1760017261637,5.19681575,224.42,224.4,10.87647521]